[Event "5th EKA IIFL Investment 2019"]
[Site "Mumbai"]
[Date "2020.01.06"]
[Round "8.22"]
[White "Lugovskoy, Maxim"]
[Black "Girinath, P.D.S."]
[Result "0-1"]
[ECO "A80"]
[WhiteElo "2466"]
[BlackElo "2330"]
[Annotator "RC"]
[PlyCount "82"]
[EventDate "2019.12.30"]
[EventType "swiss"]
[EventCountry "IND"]
[SourceTitle "playchess.com"]
[Source "ChessBase"]
[SourceQuality "1"]
[TimeControl "40/5400+30:1800+30"]

1. d4 {[%emt 0:04:37]} f5 {[%emt 0:00:18]} 2. g4 {[%emt 0:00:24]} fxg4 {[%emt 0:02:09]} 3. e4 {[%emt 0:00:05]} d5 {[%emt 0:01:44]} 4. Nc3 {[%emt 0:00:35]} dxe4 {[%emt 0:04:50]} 5. Bg2 {[%emt 0:02:59]} Nf6 {[%emt 0:00:55]} 6. Nxe4 {[%emt 0:02:40]} Nc6 {[%emt 0:03:28]} 7. Ne2 {[%emt 0:01:10]} e5 {[%emt 0:06:11]} 8. Be3 {[%emt 0:03:27]} Be7 {[%emt 0:21:05]} 9. Qd3 {[%emt 0:01:37]} Nd5 {[%emt 0:26:39]} 10. O-O-O {[%emt 0:06:52]} Nxe3 {[%emt 0:08:24]} 11. Qxe3 {[%emt 0:01:16]} O-O {[%emt 0:00:40]} 12. dxe5 {[%emt 0:00:51]} Qe8 {[%emt 0:00:12]} 13. h3 {[%emt 0:10:55]} Nxe5 {[%emt 0:02:20]} 14. hxg4 {[%emt 0:00:23]} Bxg4 {[%emt 0:05:18]} 15. f4 {[%emt 0:13:31]} Bxe2 {[%emt 0:03:22]} 16. Qxe2 {[%emt 0:00:09]} Rxf4 {[%emt 0:00:28]} 17. Qe3 {[%emt 0:13:10]} Ng6 {[%emt 0:02:27]} 18. Qb3+ {[%emt 0:09:19]} Kh8 {[%emt 0:00:08]} 19. Kb1 {[%emt 0:01:22]} Rd8 {[%emt 0:03:29]} 20. Rde1 {[%emt 0:00:27]} Bh4 {[%emt 0:01:02]} 21. Re3 {[%emt 0:02:59]} Qc6 {[%emt 0:01:31]} 22. a3 {[%emt 0:08:07]} Qb6 {[%emt 0:01:16]} 23. Qc3 {[%emt 0:00:09]} c6 {[%emt 0:00:32]} 24. Rd3 {[%emt 0:01:23]} Rxd3 {[%emt 0:00:43]} 25. Qxd3 {[%emt 0:00:03]} Qd8 {[%emt 0:00:27]} 26. Nd6 {[%emt 0:01:41]} Qf8 {[%emt 0:00:52]} 27. Nxb7 {[%emt 0:00:59]} c5 28. Qd5 {[%emt 0:01:22]} Rf5 {[%emt 0:01:16]} 29. Qc4 {[%emt 0:00:41]} Rf4 {[%emt 0:01:56]} 30. Qd5 {[%emt 0:02:23]} Rf5 {[%emt 0:00:15]} 31. Qd1 {[%emt 0:00:11]} Qe7 {[%emt 0:00:31]} 32. Nd6 {[%emt 0:00:28]} Re5 {[%emt 0:00:15]} 33. Ka2 {[%emt 0:00:55]} Qe6+ {[%emt 0:00:38]} 34. c4 {[%emt 0:00:02]} Be7 {[%emt 0:00:16]} 35. Nb7 {[%emt 0:03:05]} Qxc4+ {[%emt 0:00:11]} 36. Ka1 {[%emt 0:00:00]} Qe2 {[%emt 0:00:48]} 37. Qg1 {[%emt 0:00:51]} Re3 {[%emt 0:00:32]} 38. Qf1 {[%emt 0:02:55]} Bf6 {[%emt 0:00:53]} 39. Qc1 {[%emt 0:02:23]} Rxa3+ {[%emt 0:00:22]} 40. Kb1 {[%emt 0:00:00]} Qd3+ {[%emt 0:00:00]} 41. Qc2 {[%emt 0:00:07]} Ra1+ {[%emt 0:00:17]} 0-1

[Event "5th EKA IIFL Investment 2019"]
[Site "Mumbai"]
[Date "2020.01.06"]
[Round "8.23"]
[White "Shailesh, Dravid"]
[Black "Nguyen, Van Huy"]
[Result "0-1"]
[ECO "B12"]
[WhiteElo "2311"]
[BlackElo "2457"]
[Annotator "RC"]
[PlyCount "84"]
[EventDate "2019.12.30"]
[EventType "swiss"]
[EventCountry "IND"]
[SourceTitle "playchess.com"]
[Source "ChessBase"]
[SourceQuality "1"]
[TimeControl "40/5400+30:1800+30"]

1. e4 {[%emt 0:02:48]} c6 {[%emt 0:00:00]} 2. d4 {[%emt 0:00:14]} d5 {[%emt 0:00:00]} 3. e5 {[%emt 0:00:17]} Bf5 {[%emt 0:00:23]} 4. Nc3 {[%emt 0:00:05]} e6 {[%emt 0:01:11]} 5. g4 {[%emt 0:00:38]} Bg6 {[%emt 0:00:09]} 6. Nge2 {[%emt 0:00:05]} f6 {[%emt 0:00:55]} 7. h4 {[%emt 0:02:39]} Nd7 {[%emt 0:01:03]} 8. h5 {[%emt 0:04:32]} Bf7 {[%emt 0:01:10]} 9. f4 {[%emt 0:03:31]} c5 {[%emt 0:02:29]} 10. Bg2 {[%emt 0:04:37]} Ne7 {[%emt 0:19:10]} 11. h6 {[%emt 0:06:52]} gxh6 {[%emt 0:10:25]} 12. exf6 {[%emt 0:01:18]} Nxf6 {[%emt 0:01:56]} 13. g5 {[%emt 0:00:23]} Nd7 {[%emt 0:03:59]} 14. dxc5 {[%emt 0:03:26]} Nf5 {[%emt 0:07:58]} 15. Nd4 {[%emt 0:01:59]} Nxd4 {[%emt 0:01:03]} 16. Qxd4 {[%emt 0:00:14]} Rg8 {[%emt 0:00:30]} 17. Qa4 {[%emt 0:03:31]} hxg5 {[%emt 0:07:26]} 18. fxg5 {[%emt 0:07:50]} Rxg5 {[%emt 0:01:31]} 19. Bxg5 {[%emt 0:09:45]} Qxg5 {[%emt 0:00:52]} 20. c6 {[%emt 0:01:43]} bxc6 {[%emt 0:02:13]} 21. Qxc6 {[%emt 0:00:15]} Rd8 {[%emt 0:08:08]} 22. Bf3 {[%emt 0:07:23]} Qg3+ {[%emt 0:00:57]} 23. Ke2 {[%emt 0:00:17]} Qe5+ {[%emt 0:00:08]} 24. Kf1 {[%emt 0:04:25]} Qf5 {[%emt 0:00:46]} 25. Kg2 {[%emt 0:03:11]} Qxc2+ {[%emt 0:06:04]} 26. Kh3 {[%emt 0:00:25]} Qf5+ {[%emt 0:01:48]} 27. Kg2 {[%emt 0:00:13]} Bc5 {[%emt 0:04:00]} 28. Rae1 {[%emt 0:01:06]} Qg5+ {[%emt 0:00:56]} 29. Kh3 {[%emt 0:00:41]} Qh6+ {[%emt 0:02:22]} 30. Kg2 {[%emt 0:00:16]} Qg6+ {[%emt 0:00:41]} 31. Kh3 {[%emt 0:04:28]} Bf2 {[%emt 0:02:54]} 32. Qc7 {[%emt 0:00:56]} e5 {[%emt 0:07:01]} 33. Rxe5+ {[%emt 0:02:23]} Nxe5 {[%emt 0:00:06]} 34. Qxe5+ {[%emt 0:00:03]} Kf8 {[%emt 0:01:17]} 35. Rf1 {[%emt 0:01:07]} Re8 {[%emt 0:02:19]} 36. Qh8+ {[%emt 0:07:37]} Ke7 {[%emt 0:00:04]} 37. Qe5+ {[%emt 0:00:03]} Kf8 {[%emt 0:00:05]} 38. Qh8+ {[%emt 0:00:05]} Ke7 {[%emt 0:00:10]} 39. Qe5+ {[%emt 0:00:45]} Kd7 {[%emt 0:01:58]} 40. Qf4 {[%emt 0:00:00]} Be6+ {[%emt 0:00:00]} 41. Kh2 {[%emt 0:01:56]} Rg8 {[%emt 0:03:46]} 42. Qa4+ {[%emt 0:02:34]} Kd8 {[%emt 0:02:08]} 0-1

[Event "5th EKA IIFL Investment 2019"]
[Site "Mumbai"]
[Date "2020.01.06"]
[Round "8.24"]
[White "Koustav Chatterjee"]
[Black "Pranav, Anand"]
[Result "1-0"]
[ECO "A46"]
[WhiteElo "2447"]
[BlackElo "2309"]
[Annotator "RC"]
[PlyCount "71"]
[EventDate "2019.12.30"]
[EventType "swiss"]
[EventCountry "IND"]
[SourceTitle "playchess.com"]
[Source "ChessBase"]
[SourceQuality "1"]
[TimeControl "40/5400+30:1800+30"]

1. d4 {[%emt 0:00:00]} Nf6 {[%emt 0:00:00]} 2. Nf3 {[%emt 0:00:00]} e6 {[%emt 0:00:00]} 3. g3 {[%emt 0:00:12]} d5 {[%emt 0:00:00]} 4. Bg2 {[%emt 0:00:04]} b5 {[%emt 0:00:11]} 5. O-O {[%emt 0:00:07]} Be7 {[%emt 0:00:22]} 6. a4 {[%emt 0:00:06]} b4 {[%emt 0:00:05]} 7. c4 {[%emt 0:00:05]} bxc3 {[%emt 0:00:04]} 8. Nxc3 {[%emt 0:00:25]} a5 9. Bf4 {[%emt 0:07:21]} O-O {[%emt 0:03:14]} 10. Rc1 {[%emt 0:02:32]} c6 {[%emt 0:07:09]} 11. Nb1 {[%emt 0:06:05]} Qb6 {[%emt 0:07:43]} 12. Nbd2 {[%emt 0:09:11]} Nfd7 {[%emt 0:09:17]} 13. Nb3 {[%emt 0:08:58]} Na6 {[%emt 0:02:42]} 14. e4 {[%emt 0:08:29]} Bb7 {[%emt 0:09:18]} 15. Ne5 {[%emt 0:05:18]} Nxe5 {[%emt 0:03:44]} 16. Bxe5 {[%emt 0:01:41]} Kh8 {[%emt 0:15:02]} 17. Rc3 {[%emt 0:04:54]} Bb4 {[%emt 0:01:18]} 18. Rc1 {[%emt 0:02:21]} Be7 {[%emt 0:04:13]} 19. h4 {[%emt 0:00:43]} Rfd8 {[%emt 0:02:23]} 20. Rc3 {[%emt 0:03:16]} f6 {[%emt 0:09:30]} 21. Bf4 {[%emt 0:00:06]} dxe4 {[%emt 0:07:12]} 22. Bxe4 {[%emt 0:05:17]} c5 {[%emt 0:00:46]} 23. Bxb7 {[%emt 0:00:12]} Qxb7 {[%emt 0:03:12]} 24. Nxa5 {[%emt 0:00:06]} Qxb2 {[%emt 0:06:54]} 25. Qf3 {[%emt 0:00:40]} Nb4 26. Nc4 {[%emt 0:01:58]} Qa2 {[%emt 0:07:10]} 27. Nb6 {[%emt 0:00:30]} Ra7 {[%emt 0:01:29]} 28. dxc5 {[%emt 0:00:42]} Nd5 {[%emt 0:00:25]} 29. Nxd5 {[%emt 0:01:45]} exd5 {[%emt 0:00:29]} 30. c6 {[%emt 0:01:00]} d4 {[%emt 0:00:33]} 31. Rb3 {[%emt 0:00:26]} Qxa4 {[%emt 0:00:25]} 32. c7 {[%emt 0:00:09]} Rc8 {[%emt 0:00:07]} 33. Rb8 {[%emt 0:02:46]} Ra8 {[%emt 0:00:25]} 34. Qxa8 {[%emt 0:00:13]} Qxa8 {[%emt 0:00:04]} 35. Rxa8 {[%emt 0:00:06]} Rxa8 {[%emt 0:00:03]} 36. Ra1 {[%emt 0:00:04]} 1-0

[Event "5th EKA IIFL Investment 2019"]
[Site "Mumbai"]
[Date "2020.01.06"]
[Round "8.25"]
[White "Saravana, Krishnan P."]
[Black "Khusenkhojaev, Muhammad"]
[Result "1/2-1/2"]
[ECO "E30"]
[WhiteElo "2304"]
[BlackElo "2427"]
[Annotator "RC"]
[PlyCount "64"]
[EventDate "2019.12.30"]
[EventType "swiss"]
[EventCountry "IND"]
[SourceTitle "playchess.com"]
[Source "ChessBase"]
[SourceQuality "1"]
[TimeControl "40/5400+30:1800+30"]

1. d4 {[%emt 0:00:00]} Nf6 {[%emt 0:00:00]} 2. c4 {[%emt 0:00:10]} e6 {[%emt 0:00:03]} 3. Nc3 {[%emt 0:03:09]} Bb4 {[%emt 0:00:48]} 4. Bg5 {[%emt 0:00:32]} h6 {[%emt 0:00:28]} 5. Bh4 {[%emt 0:00:42]} b6 {[%emt 0:02:38]} 6. f3 {[%emt 0:03:25]} Bxc3+ {[%emt 0:03:59]} 7. bxc3 {[%emt 0:00:11]} d6 {[%emt 0:02:10]} 8. e4 {[%emt 0:05:24]} e5 {[%emt 0:01:35]} 9. dxe5 {[%emt 0:14:18]} dxe5 {[%emt 0:00:20]} 10. Qxd8+ {[%emt 0:00:08]} Kxd8 {[%emt 0:00:03]} 11. c5 {[%emt 0:00:08]} Ba6 {[%emt 0:07:49]} 12. Ne2 {[%emt 0:06:40]} Nbd7 {[%emt 0:03:51]} 13. O-O-O {[%emt 0:09:09]} Kc8 {[%emt 0:01:06]} 14. c6 {[%emt 0:19:47]} Nb8 {[%emt 0:00:08]} 15. Bxf6 {[%emt 0:00:58]} gxf6 {[%emt 0:00:28]} 16. g4 {[%emt 0:00:56]} Rd8 {[%emt 0:07:59]} 17. Rxd8+ {[%emt 0:13:47]} Kxd8 {[%emt 0:00:04]} 18. Ng3 {[%emt 0:00:05]} Bxf1 {[%emt 0:00:08]} 19. Rxf1 {[%emt 0:00:05]} Nxc6 {[%emt 0:00:12]} 20. Nf5 {[%emt 0:02:30]} Kd7 {[%emt 0:00:09]} 21. Rd1+ {[%emt 0:00:13]} Ke6 {[%emt 0:00:04]} 22. Ng7+ {[%emt 0:00:54]} Ke7 {[%emt 0:00:07]} 23. Nf5+ {[%emt 0:00:11]} Ke6 {[%emt 0:00:05]} 24. Rd2 {[%emt 0:05:35]} Rh8 {[%emt 0:00:13]} 25. Ng7+ {[%emt 0:00:15]} Ke7 {[%emt 0:00:06]} 26. Nf5+ {[%emt 0:00:03]} Ke6 {[%emt 0:00:04]} 27. Kd1 {[%emt 0:01:10]} Na5 {[%emt 0:00:44]} 28. Ng7+ {[%emt 0:00:20]} Ke7 {[%emt 0:00:07]} 29. Nf5+ {[%emt 0:00:04]} Ke6 {[%emt 0:00:07]} 30. Ng7+ {[%emt 0:01:29]} Ke7 {[%emt 0:00:04]} 31. Nf5+ {[%emt 0:00:14]} Ke6 {[%emt 0:00:05]} 32. Ng7+ {[%emt 0:03:48]} Ke7 {[%emt 0:00:47]} 1/2-1/2

[Event "5th EKA IIFL Investment 2019"]
[Site "Mumbai"]
[Date "2020.01.06"]
[Round "8.26"]
[White "Mohammad Nubairshah Shaikh"]
[Black "Srihari, L R"]
[Result "1/2-1/2"]
[ECO "A04"]
[WhiteElo "2428"]
[BlackElo "2271"]
[Annotator "ChessBase"]
[PlyCount "90"]
[EventDate "2019.12.30"]
[EventType "swiss"]
[EventCountry "IND"]
[SourceTitle "playchess.com"]
[Source "ChessBase"]
[SourceQuality "1"]
[TimeControl "40/5400+30:1800+30"]

1. Nf3 {[%emt 0:06:53]} f5 {[%emt 0:00:00]} 2. c4 {[%emt 0:02:38]} Nf6 {[%emt 0:00:27]} 3. Nc3 {[%emt 0:00:02]} d6 {[%emt 0:01:59]} 4. d4 {[%emt 0:00:08]} e6 {[%emt 0:09:56]} 5. Qc2 {[%emt 0:05:13]} Be7 {[%emt 0:02:13]} 6. g3 {[%emt 0:06:33]} O-O {[%emt 0:00:33]} 7. Bg2 {[%emt 0:00:02]} a5 {[%emt 0:02:50]} 8. O-O {[%emt 0:00:35]} Nc6 {[%emt 0:00:30]} 9. Rd1 {[%emt 0:06:53]} Qe8 {[%emt 0:02:47]} 10. a3 {[%emt 0:02:23]} e5 {[%emt 0:01:21]} 11. dxe5 {[%emt 0:13:46]} dxe5 {[%emt 0:02:02]} 12. Nd5 {[%emt 0:00:27]} Bd8 {[%emt 0:00:06]} 13. Bg5 {[%emt 0:01:46]} Qf7 {[%emt 0:13:07]} 14. e3 {[%emt 0:12:20]} e4 {[%emt 0:05:14]} 15. Bxf6 {[%emt 0:00:41]} Bxf6 {[%emt 0:00:18]} 16. Nxf6+ {[%emt 0:01:09]} Qxf6 {[%emt 0:00:09]} 17. Nd4 {[%emt 0:00:02]} Ne5 {[%emt 0:01:32]} 18. c5 {[%emt 0:03:49]} Be6 {[%emt 0:02:46]} 19. Nxe6 {[%emt 0:06:59]} Qxe6 {[%emt 0:01:25]} 20. Rd4 {[%emt 0:00:00]} Nc6 {[%emt 0:09:59]} 21. Rd2 {[%emt 0:00:05]} Rfd8 {[%emt 0:01:31]} 22. Rad1 {[%emt 0:00:02]} Rxd2 {[%emt 0:00:37]} 23. Rxd2 {[%emt 0:00:05]} Rd8 {[%emt 0:00:05]} 24. Rxd8+ {[%emt 0:01:20]} Nxd8 {[%emt 0:00:02]} 25. Bf1 {[%emt 0:00:02]} Kf8 {[%emt 0:01:13]} 26. Bc4 {[%emt 0:05:44]} Qd7 {[%emt 0:02:20]} 27. Bb3 {[%emt 0:06:53]} Ne6 {[%emt 0:12:34]} 28. Qc4 {[%emt 0:01:48]} Ke7 {[%emt 0:00:53]} 29. g4 {[%emt 0:06:15]} g6 {[%emt 0:00:36]} 30. gxf5 {[%emt 0:01:45]} gxf5 {[%emt 0:00:52]} 31. Kg2 {[%emt 0:00:13]} Qc6 {[%emt 0:03:39]} 32. Kg3 {[%emt 0:01:38]} Ng5 {[%emt 0:05:55]} 33. h4 {[%emt 0:02:53]} Ne6 {[%emt 0:00:11]} 34. Ba2 {[%emt 0:04:28]} b5 {[%emt 0:04:40]} 35. cxb6 {[%emt 0:00:24]} Qxc4 {[%emt 0:00:32]} 36. Bxc4 {[%emt 0:00:03]} cxb6 {[%emt 0:00:06]} 37. b4 {[%emt 0:01:43]} axb4 {[%emt 0:01:45]} 38. axb4 {[%emt 0:00:01]} Kf6 {[%emt 0:01:15]} 39. f3 {[%emt 0:00:15]} exf3 {[%emt 0:03:08]} 40. Kxf3 {[%emt 0:00:00]} Ng7 {[%emt 0:00:00]} 41. Bg8 {[%emt 0:16:17]} h6 {[%emt 0:02:16]} 42. Bb3 {[%emt 0:05:13]} Ke5 {[%emt 0:00:37]} 43. Bf7 {[%emt 0:00:03]} Kf6 {[%emt 0:00:09]} 44. Bb3 {[%emt 0:00:01]} Ke5 {[%emt 0:00:50]} 45. Bf7 {[%emt 0:00:05]} Kf6 {[%emt 0:00:04] Ke4 Ke5+} 1/2-1/2

[Event "5th EKA IIFL Investment 2019"]
[Site "Mumbai"]
[Date "2020.01.06"]
[Round "8.27"]
[White "Nitish Belurkar"]
[Black "Sundararajan, Kidambi"]
[Result "1/2-1/2"]
[ECO "B00"]
[WhiteElo "2294"]
[BlackElo "2414"]
[Annotator "ChessBase"]
[PlyCount "96"]
[EventDate "2019.12.30"]
[EventType "swiss"]
[EventCountry "IND"]
[SourceTitle "playchess.com"]
[Source "ChessBase"]
[SourceQuality "1"]
[TimeControl "40/5400+30:1800+30"]

1. e4 {[%emt 0:00:00]} Nc6 {[%emt 0:00:00]} 2. Nf3 {[%emt 0:00:00]} d6 {[%emt 0:00:00]} 3. d4 {[%emt 0:00:46]} Nf6 {[%emt 0:00:06]} 4. Nc3 {[%emt 0:00:08]} g6 {[%emt 0:00:08]} 5. Be2 {[%emt 0:08:50]} Bg7 {[%emt 0:00:12]} 6. O-O {[%emt 0:00:08]} O-O {[%emt 0:00:14]} 7. h3 {[%emt 0:01:55]} a6 {[%emt 0:01:58]} 8. a4 {[%emt 0:01:22]} b6 {[%emt 0:00:42]} 9. Bg5 {[%emt 0:03:18]} h6 {[%emt 0:01:16]} 10. Be3 {[%emt 0:00:26]} e5 {[%emt 0:02:43]} 11. Qd2 {[%emt 0:03:41]} exd4 {[%emt 0:04:59]} 12. Nxd4 {[%emt 0:00:28]} Nxd4 {[%emt 0:05:05]} 13. Bxd4 {[%emt 0:01:47]} Bb7 {[%emt 0:02:35]} 14. Rad1 {[%emt 0:05:41]} Re8 {[%emt 0:04:30]} 15. Bf3 {[%emt 0:04:10]} Rb8 {[%emt 0:01:25]} 16. Rfe1 {[%emt 0:04:23]} Nh7 {[%emt 0:08:07]} 17. Bxg7 {[%emt 0:01:45]} Kxg7 {[%emt 0:01:36]} 18. g3 {[%emt 0:00:33]} Qg5 {[%emt 0:07:04]} 19. Bg2 {[%emt 0:06:55]} Qxd2 {[%emt 0:03:51]} 20. Rxd2 {[%emt 0:00:26]} Nf6 {[%emt 0:04:22]} 21. f4 {[%emt 0:10:09]} Nh7 {[%emt 0:08:22]} 22. Kf2 {[%emt 0:10:10]} Nf8 {[%emt 0:00:54]} 23. b3 {[%emt 0:01:56]} g5 {[%emt 0:06:24]} 24. h4 {[%emt 0:04:08]} Ne6 {[%emt 0:02:40]} 25. hxg5 {[%emt 0:09:19]} hxg5 {[%emt 0:00:09]} 26. e5 {[%emt 0:00:31]} Bxg2 {[%emt 0:01:42]} 27. Kxg2 {[%emt 0:01:11]} gxf4 {[%emt 0:00:46]} 28. exd6 {[%emt 0:00:52]} cxd6 {[%emt 0:00:14]} 29. Rf1 {[%emt 0:07:10]} fxg3 {[%emt 0:02:05]} 30. Rxd6 {[%emt 0:00:34]} Red8 {[%emt 0:03:51]} 31. Rxd8 {[%emt 0:00:09]} Rxd8 {[%emt 0:00:05]} 32. Kxg3 {[%emt 0:00:15]} Rc8 {[%emt 0:02:06]} 33. Nd5 {[%emt 0:00:44]} Rxc2 {[%emt 0:00:29]} 34. Nxb6 {[%emt 0:00:07]} Rb2 {[%emt 0:00:41]} 35. Rf3 {[%emt 0:01:50]} Nd4 {[%emt 0:00:31]} 36. Nc4 {[%emt 0:02:16]} Rxb3 {[%emt 0:00:25]} 37. Rxb3 {[%emt 0:00:05]} Nxb3 {[%emt 0:00:07]} 38. Kf4 {[%emt 0:01:09]} Kf6 {[%emt 0:00:08]} 39. Ne5 {[%emt 0:02:35]} Nc5 {[%emt 0:02:12]} 40. a5 {[%emt 0:00:00]} Ke6 {[%emt 0:00:00]} 41. Nc6 {[%emt 0:00:25]} Nd3+ {[%emt 0:06:04]} 42. Ke4 {[%emt 0:00:37]} Kd6 {[%emt 0:01:01]} 43. Nb8 {[%emt 0:00:52]} Nb4 {[%emt 0:02:35]} 44. Kf5 {[%emt 0:00:08]} Kc7 {[%emt 0:01:05]} 45. Nxa6+ {[%emt 0:00:05]} Nxa6 {[%emt 0:00:06]} 46. Kf6 {[%emt 0:00:03]} Kc6 {[%emt 0:00:12]} 47. Kxf7 {[%emt 0:00:03]} Kb5 {[%emt 0:00:06]} 48. Kf6 {[%emt 0:00:03]} Kxa5 {[%emt 0:00:37]} 1/2-1/2

[Event "5th EKA IIFL Investment 2019"]
[Site "Mumbai"]
[Date "2020.01.06"]
[Round "8.28"]
[White "Zysk, Robert"]
[Black "Harshad S"]
[Result "1/2-1/2"]
[ECO "A06"]
[WhiteElo "2403"]
[BlackElo "2314"]
[Annotator "RC"]
[PlyCount "154"]
[EventDate "2019.12.30"]
[EventType "swiss"]
[EventCountry "IND"]
[SourceTitle "playchess.com"]
[Source "ChessBase"]
[SourceQuality "1"]
[TimeControl "40/5400+30:1800+30"]

1. Nf3 {[%emt 0:00:00]} d5 {[%emt 0:00:55]} 2. g3 {[%emt 0:00:27]} Nf6 {[%emt 0:01:42]} 3. Bg2 {[%emt 0:00:22]} c6 {[%emt 0:00:34]} 4. b3 {[%emt 0:02:06]} h6 {[%emt 0:00:41]} 5. Bb2 {[%emt 0:00:45]} Bf5 {[%emt 0:00:46]} 6. d3 {[%emt 0:00:54]} e6 {[%emt 0:04:22]} 7. Nbd2 {[%emt 0:01:51]} Bh7 {[%emt 0:00:40]} 8. O-O {[%emt 0:01:11]} Be7 {[%emt 0:00:37]} 9. e4 {[%emt 0:06:37]} O-O {[%emt 0:02:38]} 10. Qe2 {[%emt 0:01:26]} dxe4 {[%emt 0:03:54]} 11. dxe4 {[%emt 0:02:35]} c5 {[%emt 0:07:13]} 12. e5 {[%emt 0:15:26]} Nfd7 {[%emt 0:08:23]} 13. Nc4 {[%emt 0:12:23]} Qc7 {[%emt 0:06:23]} 14. Rfd1 {[%emt 0:00:55]} Nc6 {[%emt 0:01:10]} 15. Rd2 {[%emt 0:00:23]} Rad8 {[%emt 0:06:14]} 16. Rad1 {[%emt 0:00:51]} a6 {[%emt 0:02:15]} 17. h4 {[%emt 0:02:19]} Nb6 {[%emt 0:05:30]} 18. Nd6 {[%emt 0:24:24]} Nc8 {[%emt 0:00:33]} 19. Nxc8 {[%emt 0:04:00]} Qxc8 {[%emt 0:00:26]} 20. Ne1 {[%emt 0:01:19]} Rxd2 {[%emt 0:00:41]} 21. Rxd2 {[%emt 0:00:35]} Rd8 {[%emt 0:00:24]} 22. Rxd8+ {[%emt 0:04:36]} Nxd8 {[%emt 0:02:02]} 23. Be4 {[%emt 0:01:23]} Bxe4 {[%emt 0:05:14]} 24. Qxe4 {[%emt 0:00:05]} Nc6 {[%emt 0:00:56]} 25. a3 {[%emt 0:05:47]} b6 {[%emt 0:08:01]} 26. Nd3 {[%emt 0:00:39]} Na5 {[%emt 0:00:39]} 27. Nf4 {[%emt 0:01:59]} Qc6 {[%emt 0:02:09]} 28. Qe2 {[%emt 0:01:38]} b5 {[%emt 0:00:45]} 29. Bc1 {[%emt 0:01:13]} Bf8 {[%emt 0:04:49]} 30. Nh5 {[%emt 0:01:59]} Kh8 {[%emt 0:01:31]} 31. Bd2 {[%emt 0:02:45]} Nb7 {[%emt 0:00:14]} 32. c4 {[%emt 0:00:58]} bxc4 {[%emt 0:01:18]} 33. bxc4 {[%emt 0:00:27]} Qa4 {[%emt 0:00:36]} 34. Qf3 {[%emt 0:01:52]} Nd8 {[%emt 0:00:26]} 35. Nf4 {[%emt 0:00:37]} Kg8 {[%emt 0:02:40]} 36. Qd3 {[%emt 0:00:15]} Nc6 {[%emt 0:00:46]} 37. Qe4 {[%emt 0:00:35]} Qd1+ {[%emt 0:00:41]} 38. Be1 {[%emt 0:00:26]} Nd4 {[%emt 0:00:29]} 39. Kg2 {[%emt 0:00:25]} Qc1 {[%emt 0:00:57]} 40. Ba5 {[%emt 0:00:00]} Qxc4 {[%emt 0:00:00]} 41. Qa8 {[%emt 0:12:27]} Qa4 {[%emt 0:25:18]} 42. Bc3 {[%emt 0:08:52]} Qxa3 {[%emt 0:01:09]} 43. Bxd4 {[%emt 0:00:14]} cxd4 {[%emt 0:00:02]} 44. Qe4 {[%emt 0:01:09]} Qc5 {[%emt 0:07:47]} 45. g4 {[%emt 0:00:07]} a5 {[%emt 0:03:54]} 46. g5 {[%emt 0:00:11]} hxg5 {[%emt 0:00:42]} 47. hxg5 {[%emt 0:00:18]} g6 {[%emt 0:00:19]} 48. Nxe6 {[%emt 0:01:32]} Qe7 {[%emt 0:05:50]} 49. Nxf8 {[%emt 0:05:20]} Qxg5+ {[%emt 0:00:23]} 50. Kf1 {[%emt 0:00:14]} Qc1+ {[%emt 0:01:05]} 51. Kg2 {[%emt 0:02:39]} Kxf8 {[%emt 0:00:32]} 52. Qxd4 {[%emt 0:00:30]} Qc6+ {[%emt 0:00:13]} 53. Kg3 {[%emt 0:00:59]} a4 {[%emt 0:00:14]} 54. e6 {[%emt 0:00:51]} fxe6 {[%emt 0:00:54]} 55. Qf6+ {[%emt 0:00:17]} Ke8 {[%emt 0:00:05]} 56. Qxg6+ {[%emt 0:00:05]} Kd7 {[%emt 0:00:23]} 57. Qg7+ {[%emt 0:00:33]} Kc8 {[%emt 0:01:12]} 58. Qf8+ {[%emt 0:00:56]} Kb7 {[%emt 0:00:07]} 59. Qb4+ {[%emt 0:00:21]} Ka6 {[%emt 0:00:09]} 60. f4 {[%emt 0:00:57]} Qd7 {[%emt 0:00:45]} 61. Qc4+ {[%emt 0:00:36]} Kb6 {[%emt 0:00:13]} 62. Qb4+ {[%emt 0:00:18]} Kc7 {[%emt 0:00:12]} 63. Qa5+ {[%emt 0:00:41]} Kd6 {[%emt 0:00:21]} 64. Qb4+ {[%emt 0:00:22]} Kd5 {[%emt 0:01:12]} 65. Qd2+ {[%emt 0:00:44]} Kc6 {[%emt 0:00:08]} 66. Qc3+ {[%emt 0:00:11]} Kb5 {[%emt 0:00:12]} 67. Qb2+ {[%emt 0:00:15]} Ka5 {[%emt 0:00:57]} 68. Qc3+ {[%emt 0:00:10]} Kb5 {[%emt 0:00:27]} 69. Qb2+ {[%emt 0:00:13]} Ka6 {[%emt 0:00:24]} 70. Qe2+ {[%emt 0:00:33]} Ka5 {[%emt 0:00:19]} 71. Qe1+ {[%emt 0:00:26]} Kb5 {[%emt 0:00:14]} 72. Qe2+ {[%emt 0:00:37]} Kb4 {[%emt 0:00:23]} 73. Qb2+ {[%emt 0:00:18]} Kc4 {[%emt 0:00:20]} 74. Qc2+ {[%emt 0:00:32]} Kb4 {[%emt 0:00:25]} 75. Qb2+ {[%emt 0:00:09]} Ka5 {[%emt 0:00:15]} 76. Qc3+ {[%emt 0:00:13]} Kb5 {[%emt 0:00:09]} 77. Qb2+ {[%emt 0:01:12]} Ka5 {[%emt 0:00:35]} 1/2-1/2